Departmental Family,Entity,Transaction Number,Payment Date,Name,Expense Area, Supplier ,Description, Base Amount 
BIS,NMO,28188022,22/04/2014,Capital project management ,Estates,AECOM Professional Services LLP,Cost management services," 26,306.40 "
BIS,NMO,28188014,22/04/2014,Capital project management ,Estates,AECOM Professional Services LLP,Project management services," 48,000.00 "
BIS,NMO,90363273,22/04/2014,Building Maintenance,Estates,Amey Community Ltd,Building maintenance, 644.15 
BIS,NMO,90365097,22/04/2014,Building Service Charges,Estates,Amey Community Ltd,Batched low value minor works," 2,359.30 "
BIS,NMO,90365100,22/04/2014,Building construction,Estates,Amey Community Ltd,Estates repairs/renewals," 4,428.48 "
BIS,NMO,90364758,22/04/2014,Building construction,Estates,Amey Community Ltd,Estates repairs/renewals," 9,352.00 "
BIS,NMO,90365103,22/04/2014,Building construction,Estates,Amey Community Ltd,Estates repairs/renewals," 15,792.82 "
BIS,NMO,90365094,22/04/2014,Building construction,Estates,Amey Community Ltd,Estates repairs/renewals," 29,773.69 "
BIS,NMO,90365092,22/04/2014,Building construction,Estates,Amey Community Ltd,Estates repairs/renewals," 37,829.64 "
BIS,NMO,90365093,22/04/2014,Building construction,Estates,Amey Community Ltd,Estates repairs/renewals," 174,580.39 "
BIS,NMO,27994541,22/04/2014,Stationery,Corporate Services,Banner Business Services Ltd,Stationery, 34.63 
BIS,NMO,27951717,22/04/2014,Stationery,Corporate Services,Banner Business Services Ltd,Stationery, 551.44 
BIS,NMO,400430007,22/04/2014,Professional Bodies Subscription,Corporate Services,BSI Assurance UK Ltd,Annual certification/management fee, 465.60 
BIS,NMO,BIML/2014/3399,22/04/2014,OIML Certificate Registartion Fees,Certification Services ,Bureau International de Metrologie Legale,OIML certificate registraton fees," 2,016.35 "
BIS,NMO,60180,22/04/2014,Calibrating Equipment,Enforcement ,Caltest Instruments Ltd,Equipment calibration, 135.00 
BIS,NMO,499,22/04/2014,Contractors costs,Certification Services ,D&J Services Ltd,Auditing services, 561.39 
BIS,NMO,497,22/04/2014,Contractors costs,Certification Services ,D&J Services Ltd,Auditing services, 617.88 
BIS,NMO,7180501,22/04/2014,Laboratory Testing,Enforcement ,Danish Technological Institute,Ecopliant testing work," 17,775.00 "
BIS,NMO,PK074119,22/04/2014,Training ,Regulation,Dods Parliamentary Communications Ltd,Training courses, 490.00 
BIS,NMO,29425,22/04/2014,Calibrating Equipment,Certification Services ,Electronic Test & Calibration Ltd,Equipment calibration, 907.89 
BIS,NMO,109747,22/04/2014,Calibrating Equipment,Certification Services ,Environmental & Technical Services Ltd,Maintenance Contract, 905.50 
BIS,NMO,627925,22/04/2014,Legal Services,Change & Development ,Field Fisher Waterhouse,Legal services," 7,373.90 "
BIS,NMO,Ecopliant Fans,22/04/2014,Laboratory Testing,Enforcement ,Fundacion para de la Innovacion Industrial,Ecopliant testing work," 3,933.33 "
BIS,NMO,2346276996,22/04/2014,Car Hire & Leasing,Enforcement ,Hertz UK Limited,Car hire, 42.84 
BIS,NMO,2346253707,22/04/2014,Car Hire & Leasing,Utilities ,Hertz UK Limited,Car hire, 89.04 
BIS,NMO,J017091049,22/04/2014,Telecommunications,Corporate Services,Intercity Telecom Ltd,Mobile phone rental & calls, 149.86 
BIS,NMO,J017091049,22/04/2014,Telecommunications,Corporate Services,Intercity Telecom Ltd,Mobile phone rental & calls, 764.58 
BIS,NMO,1002946658,22/04/2014,Laboratory Testing,Enforcement ,Intertek Testing & Certification Limited,Appliance testing," 8,000.00 "
BIS,NMO,1002946663,22/04/2014,Laboratory Testing,Enforcement ,Intertek Testing & Certification Limited,Appliance testing," 9,600.00 "
BIS,NMO,1002938948,22/04/2014,Laboratory Testing,Enforcement ,ITS Testing Services (UK) Ltd,sample testing , 900.00 
BIS,NMO,305603,22/04/2014,Hospitality,Corporate Services,Kent & Sussex Vending ,Coffee machine supplies, 76.68 
BIS,NMO,305603,22/04/2014,Hospitality,Corporate Services,Kent & Sussex Vending ,Coffee machine supplies, 90.55 
BIS,NMO,017,22/04/2014,Contractors costs,Certification Services ,Legal Metrology Limited,Auditing services, 743.35 
BIS,NMO,13082,22/04/2014,Contractors costs,Certification Services ,LegMetConsult,Auditing services, 514.80 
BIS,NMO,13084,22/04/2014,Contractors costs,Certification Services ,LegMetConsult,Auditing services," 1,046.68 "
BIS,NMO,13080,22/04/2014,Contractors costs,Certification Services ,LegMetConsult,Auditing services," 2,718.30 "
BIS,NMO,44809,22/04/2014,Hiring of Rooms and Facilities,NMS Science Programmes,Lensbury Limited,AIR Programme conference," 4,544.31 "
BIS,NMO,115877,22/04/2014,Scientific Equipment ,Certification Services ,LGG Charlesworth Ltd,Scientific equipment , 370.82 
BIS,NMO,6986129/14,22/04/2014,Rates,Estates,London Borough of Richmond upon Thames,Business rates," 115,962.00 "
BIS,NMO,117711,22/04/2014,Telecommunications,Corporate Services,Maintel Voice & Data Ltd,Telephone calls & line rental," 1,812.76 "
BIS,NMO,227721,22/04/2014,Training ,Certification Services ,Mentor FLT Training Ltd,Training courses, 185.00 
BIS,NMO,1354143095,22/04/2014,Consultancy ,Change & Development ,PricewaterhouseCoopers LLP,Project consultancy fees," 49,354.00 "
BIS,NMO,040735,22/04/2014,IT Software Licences & Maintenance,Corporate Services,Sapphire Systems plc,IT Software Licence, 54.25 
BIS,NMO,040827,22/04/2014,IT and Office Equipment,Corporate Services,Sapphire Systems plc,Accounts system upgrade, 537.00 
BIS,NMO,040735,22/04/2014,Intangible assets,Corporate Services,Sapphire Systems plc,Accounts system upgrade," 1,320.00 "
BIS,NMO,040792,22/04/2014,IT and Office Equipment,Corporate Services,Sapphire Systems plc,Accounts system upgrade," 4,457.42 "
BIS,NMO,GBE176787,22/04/2014,Laboratory Testing,Utilities ,SGS UK Limited,Gas dispute meters testing," 28,041.62 "
BIS,NMO,1400066067,22/04/2014,Training ,Corporate Services,St John Ambulance,First Aid training , 215.00 
BIS,NMO,173864/14,22/04/2014,Professional Bodies Subscription,Regulation,The Institution of Engineering & Technology,Professional body membership, 137.00 
BIS,NMO,118002406862,22/04/2014,Laboratory Testing,Enforcement ,Thunen Institute of Wood Research,sample testing , 134.97 
BIS,NMO,118002406976,22/04/2014,Laboratory Testing,Enforcement ,Thunen Institute of Wood Research,sample testing , 134.97 
BIS,NMO,24715,22/04/2014,Hiring of Rooms and Facilities,Regulation,Trading Standards Institute,Management fee for Metrology seminar," 4,500.00 "
BIS,NMO,01020976,22/04/2014,UKAS Accreditation Fees,Certification Services ,UKAS,UKAS accreditation fees, 466.20 
BIS,NMO,01020976,22/04/2014,UKAS Accreditation Fees,Certification Services ,UKAS,UKAS accreditation fees, 466.20 
BIS,NMO,01020887,22/04/2014,UKAS Accreditation Fees,Certification Services ,UKAS,UKAS accreditation fees," 2,797.20 "
BIS,NMO,X05375,22/04/2014,Hire of Office Equipment,Corporate Services,XMA Limited,Quarterly lease charge for printers, 805.42 
BIS,NMO,90365095,24/04/2014,Hospitality,Corporate Services,Amey Community Ltd,Hospitality, 211.42 
BIS,NMO,09168307,24/04/2014,Gas,Estates,Corona Energy Retail 4 Ltd,Gas supplied," 2,654.75 "
BIS,NMO,20874,24/04/2014,Consultancy ,Change & Development ,Government Actuary's Department ,Actuarial services," 9,616.22 "
BIS,NMO,2346247816,24/04/2014,Car Hire & Leasing,Certification Services ,Hertz UK Limited,Car hire, 89.04 
BIS,NMO,55815,24/04/2014,Secondment,Change & Development ,NPL Management Ltd,Secondment,"-22,693.56 "
BIS,NMO,55834,24/04/2014,Secondment,Change & Development ,NPL Management Ltd,Secondment,"-1,428.35 "
BIS,NMO,55825,24/04/2014,Building Service Charges,Estates,NPL Management Ltd,FM phone system rechg Jan-Mar 14," 45,432.00 "
BIS,NMO,55817,24/04/2014,Secondment,Change & Development ,NPL Management Ltd,Secondment," 59,662.86 "
BIS,NMO,O316335,24/04/2014,Contractors costs,Certification Services ,Omega ,Travel bookings, 146.00 
BIS,NMO,1354181201,24/04/2014,Consultancy,Change & Development ,PricewaterhouseCoopers LLP,Project consultancy fees," 18,473.00 "
BIS,NMO,RBGIN00122,24/04/2014,Laboratory Testing,Enforcement ,Royal Botanic Gardens - Kew,sample testing ," 1,050.00 "
BIS,NMO,1653574,24/04/2014,Courier Services,Enforcement ,Streetwise Couriers Surrey Ltd,Courier services,-8.48 
BIS,NMO,1650262,24/04/2014,Courier Services,Enforcement ,Streetwise Couriers Surrey Ltd,Courier services, 8.48 
BIS,NMO,1650262,24/04/2014,Courier Services,Enforcement ,Streetwise Couriers Surrey Ltd,Courier services, 8.48 
BIS,NMO,1650262,24/04/2014,Courier Services,Certification Services ,Streetwise Couriers Surrey Ltd,Courier services, 24.84 
BIS,NMO,1650262,24/04/2014,Courier Services,Certification Services ,Streetwise Couriers Surrey Ltd,Courier services, 31.32 
BIS,NMO,1650262,24/04/2014,Courier Services,Certification Services ,Streetwise Couriers Surrey Ltd,Courier services, 46.50 
BIS,NMO,1650262,24/04/2014,Courier Services,Certification Services ,Streetwise Couriers Surrey Ltd,Courier services, 72.75 
BIS,NMO,TRI538773,24/04/2014,IT Services,Corporate Services,Triad,IT Helpdesk support," 4,620.00 "
BIS,NMO,9766,29/04/2014,Professional Bodies Subscription,Certification Services ,ABCB,ABCB annual membership, 930.00 
BIS,NMO,9766,29/04/2014,Professional Bodies Subscription,Certification Services ,ABCB,ABCB annual membership, 930.00 
BIS,NMO,28028101,29/04/2014,Stationery,Corporate Services,Banner Business Services Ltd,Stationery, 55.66 
BIS,NMO,20141074,29/04/2014,Professional Bodies Subscription,Certification Services ,BMTA,BMTA annual membership, 462.00 
BIS,NMO,3452,29/04/2014,IT Software Licences & Maintenance,Certification Services ,Centre for ISO9000 Ltd,Quarterly charge for database, 600.00 
BIS,NMO,118559,29/04/2014,Telecommunications,Corporate Services,Maintel Voice & Data Ltd,Telephone calls & line rental," 1,756.50 "
BIS,NMO,O315778,29/04/2014,Contractors costs,Certification Services ,Omega ,Travel bookings," 1,034.65 "
BIS,NMO,247316,29/04/2014,Travel & Subsistence,Enforcement ,Parker Cars Ltd,Taxis for staff, 25.11 
BIS,NMO,247316,29/04/2014,Travel & Subsistence,Certification Services ,Parker Cars Ltd,Taxis for staff, 28.90 
BIS,NMO,247316,29/04/2014,Travel & Subsistence,Enforcement ,Parker Cars Ltd,Taxis for staff, 208.01 
BIS,NMO,275976840,29/04/2014,Scientific Equipment ,Certification Services ,RS Components Ltd,Scientific equipment , 477.48 
BIS,NMO,1653557,29/04/2014,Courier Services,Enforcement ,Streetwise Couriers Surrey Ltd,Courier services, 6.86 
BIS,NMO,1653557,29/04/2014,Courier Services,Certification Services ,Streetwise Couriers Surrey Ltd,Courier services, 19.12 
BIS,NMO,1653557,29/04/2014,Courier Services,Certification Services ,Streetwise Couriers Surrey Ltd,Courier services, 54.85 
BIS,NMO,GRIFFITHS,29/04/2014,Professional Bodies Subscription,Enforcement ,The Institution of Engineering & Technology,Professional body membership, 137.00 
